[Event "Titled Tuesday Blitz February 14 Early 2023"]
[White "Begunov, Konstantin"]
[Black "Erdogdu, Mert"]
[WhiteFideId "4118510"]
[BlackFideId "6301495"]
[WhiteElo "2325"]
[BlackElo "2413"]
[Result "0-1"]
[Round "02"]
[TimeControl "180+2"]
[Date "2023.02.15"]
[WhiteClock "0:00:11"]
[BlackClock "0:02:25"]

1. d4 {[%clk 0:02:56]}  d5 {[%clk 0:03:00]} 2. c4 {[%clk 0:02:55]}  e6 {[%clk 0:03:00]} 3. Nc3 {[%clk 0:02:55]}  c5 {[%clk 0:02:59]} 4. cxd5 {[%clk 0:02:54]}  exd5 {[%clk 0:03:00]} 5. Nf3 {[%clk 0:02:54]}  Nc6 {[%clk 0:03:00]} 6. g3 {[%clk 0:02:55]}  Nf6 {[%clk 0:03:00]} 7. Bg2 {[%clk 0:02:55]}  Be7 {[%clk 0:03:01]} 8. O-O {[%clk 0:02:55]}  O-O {[%clk 0:03:01]} 9. Bg5 {[%clk 0:02:54]}  cxd4 {[%clk 0:03:01]} 10. Nxd4 {[%clk 0:02:54]}  h6 {[%clk 0:03:02]} 11. Be3 {[%clk 0:02:54]}  Re8 {[%clk 0:03:02]} 12. Rc1 {[%clk 0:02:47]}  Bg4 {[%clk 0:03:02]} 13. Re1 {[%clk 0:02:46]}  Qd7 {[%clk 0:03:01]} 14. Nxc6 {[%clk 0:02:42]}  bxc6 {[%clk 0:03:01]} 15. Na4 {[%clk 0:02:42]}  Bh3 {[%clk 0:02:57]} 16. Bf3 {[%clk 0:02:30]}  Rac8 {[%clk 0:02:56]} 17. Bc5 {[%clk 0:02:28]}  Bd8 {[%clk 0:02:56]} 18. Qd4 {[%clk 0:02:18]}  Ne4 {[%clk 0:02:50]} 19. Bxa7 {[%clk 0:02:05]}  Bf6 {[%clk 0:02:47]} 20. Qe3 {[%clk 0:01:10]}  Ng5 {[%clk 0:02:42]} 21. Qc5 {[%clk 0:01:06]}  Ra8 {[%clk 0:02:31]} 22. Nb6 {[%clk 0:00:17]}  Qxa7 {[%clk 0:02:30]} 23. Nxa8 {[%clk 0:00:13]}  Qxc5 {[%clk 0:02:29]} 24. Rxc5 {[%clk 0:00:14]}  Nxf3+ {[%clk 0:02:30]} 25. Kh1 {[%clk 0:00:14]}  Nxe1 {[%clk 0:02:29]} 26. Nc7 {[%clk 0:00:13]}  Rxe2 {[%clk 0:02:28]} 27. Rxc6 {[%clk 0:00:12]}  Nd3 {[%clk 0:02:25]} 28. Nxd5 {[%clk 0:00:11]}  Re1# {[%clk 0:02:25]} 0-1


[Site "https://www.chess.com"]

[Event "Titled Tuesday Blitz February 14 Early 2023"]
[White "Starozhilov, Leonid"]
[Black "Zherebtsova, Alexandra"]
[WhiteFideId "14106752"]
[BlackFideId "24129518"]
[WhiteElo "2313"]
[BlackElo "2155"]
[Result "1-0"]
[Round "02"]
[TimeControl "180+2"]
[Date "2023.02.15"]
[WhiteClock "0:00:07"]
[BlackClock "0:00:16"]

1. e4 {[%clk 0:02:57]}  e5 {[%clk 0:02:57]} 2. Nf3 {[%clk 0:02:54]}  Nc6 {[%clk 0:02:55]} 3. Nc3 {[%clk 0:02:52]}  Nf6 {[%clk 0:02:54]} 4. Bb5 {[%clk 0:02:51]}  a6 {[%clk 0:02:54]} 5. Bxc6 {[%clk 0:02:49]}  dxc6 {[%clk 0:02:55]} 6. d3 {[%clk 0:02:50]}  Nd7 {[%clk 0:02:49]} 7. d4 {[%clk 0:02:46]}  exd4 {[%clk 0:02:46]} 8. Qxd4 {[%clk 0:02:47]}  Qf6 {[%clk 0:02:33]} 9. Qxf6 {[%clk 0:02:32]}  Nxf6 {[%clk 0:02:32]} 10. Bf4 {[%clk 0:02:33]}  Bb4 {[%clk 0:02:23]} 11. O-O-O {[%clk 0:02:18]}  Bxc3 {[%clk 0:02:15]} 12. bxc3 {[%clk 0:02:19]}  Nxe4 {[%clk 0:02:12]} 13. Rhe1 {[%clk 0:02:18]}  f5 {[%clk 0:02:12]} 14. Ng5 {[%clk 0:02:17]}  O-O {[%clk 0:02:12]} 15. Nxe4 {[%clk 0:02:15]}  fxe4 {[%clk 0:02:12]} 16. Rxe4 {[%clk 0:02:15]}  Bf5 {[%clk 0:01:56]} 17. Re7 {[%clk 0:02:14]}  Rf7 {[%clk 0:01:56]} 18. Rxc7 {[%clk 0:02:08]}  Rxc7 {[%clk 0:01:55]} 19. Bxc7 {[%clk 0:02:09]}  Kf7 {[%clk 0:01:51]} 20. Bb6 {[%clk 0:02:00]}  Re8 {[%clk 0:01:46]} 21. Be3 {[%clk 0:01:59]}  Be6 {[%clk 0:01:41]} 22. Kb2 {[%clk 0:01:57]}  Bd5 {[%clk 0:01:41]} 23. g3 {[%clk 0:01:53]}  h5 {[%clk 0:01:29]} 24. Rd4 {[%clk 0:01:51]}  Re4 {[%clk 0:01:27]} 25. Rd3 {[%clk 0:01:51]}  Ra4 {[%clk 0:01:24]} 26. a3 {[%clk 0:01:51]}  Re4 {[%clk 0:01:24]} 27. h4 {[%clk 0:01:46]}  g6 {[%clk 0:01:22]} 28. Rd2 {[%clk 0:01:42]}  Re6 {[%clk 0:01:15]} 29. a4 {[%clk 0:01:40]}  Re4 {[%clk 0:01:03]} 30. a5 {[%clk 0:01:39]}  Ra4 {[%clk 0:01:03]} 31. Bb6 {[%clk 0:01:39]}  Re4 {[%clk 0:01:00]} 32. Rd3 {[%clk 0:01:36]}  Rc4 {[%clk 0:00:59]} 33. Bd4 {[%clk 0:01:31]}  Ra4 {[%clk 0:00:54]} 34. Re3 {[%clk 0:01:29]}  Rxa5 {[%clk 0:00:51]} 35. Re5 {[%clk 0:01:26]}  Ra2+ {[%clk 0:00:46]} 36. Kb1 {[%clk 0:01:26]}  Ra4 {[%clk 0:00:43]} 37. Kc1 {[%clk 0:01:11]}  Be6 {[%clk 0:00:41]} 38. f3 {[%clk 0:01:08]}  Ra1+ {[%clk 0:00:36]} 39. Kd2 {[%clk 0:01:08]}  Rf1 {[%clk 0:00:35]} 40. Re3 {[%clk 0:00:44]}  Bd5 {[%clk 0:00:32]} 41. Bc5 {[%clk 0:00:40]}  Rxf3 {[%clk 0:00:29]} 42. Re7+ {[%clk 0:00:40]}  Kf6 {[%clk 0:00:29]} 43. Rxb7 {[%clk 0:00:41]}  Rxg3 {[%clk 0:00:29]} 44. Ra7 {[%clk 0:00:32]}  Rg2+ {[%clk 0:00:25]} 45. Kd3 {[%clk 0:00:31]}  Rh2 {[%clk 0:00:21]} 46. Bd6 {[%clk 0:00:20]}  Rh3+ {[%clk 0:00:20]} 47. Kd2 {[%clk 0:00:20]}  Ke6 {[%clk 0:00:20]} 48. Be7 {[%clk 0:00:19]}  Rf3 {[%clk 0:00:19]} 49. Bg5 {[%clk 0:00:19]}  Rf7 {[%clk 0:00:18]} 50. Rxa6 {[%clk 0:00:17]}  Rd7 {[%clk 0:00:18]} 51. Ke3 {[%clk 0:00:17]}  Kf5 {[%clk 0:00:18]} 52. Ra8 {[%clk 0:00:16]}  Kg4 {[%clk 0:00:18]} 53. Rf8 {[%clk 0:00:14]}  Rf7 {[%clk 0:00:19]} 54. Re8 {[%clk 0:00:13]}  Rf3+ {[%clk 0:00:18]} 55. Kd4 {[%clk 0:00:14]}  Rf2 {[%clk 0:00:18]} 56. c4 {[%clk 0:00:14]}  Bh1 {[%clk 0:00:18]} 57. Re1 {[%clk 0:00:10]}  Bg2 {[%clk 0:00:18]} 58. Re6 {[%clk 0:00:06]}  Kf5 {[%clk 0:00:15]} 59. Rf6+ {[%clk 0:00:06]}  Kg4 {[%clk 0:00:16]} 60. Rxf2 {[%clk 0:00:07]} 1-0


[Site "https://www.chess.com"]

[Event "Titled Tuesday Blitz February 14 Early 2023"]
[White "Wagh Suyog"]
[Black "Llanos, Guillermo"]
[WhiteFideId "25071688"]
[BlackFideId "100358"]
[WhiteElo "2313"]
[BlackElo "2290"]
[Result "1-0"]
[Round "02"]
[TimeControl "180+2"]
[Date "2023.02.15"]
[WhiteClock "0:00:47"]
[BlackClock "0:00:34"]

1. e4 {[%clk 0:03:00]}  Nf6 {[%clk 0:02:56]} 2. e5 {[%clk 0:03:00]}  Nd5 {[%clk 0:02:56]} 3. Nf3 {[%clk 0:03:00]}  d6 {[%clk 0:02:55]} 4. d4 {[%clk 0:03:00]}  g6 {[%clk 0:02:55]} 5. c4 {[%clk 0:02:53]}  Nb6 {[%clk 0:02:53]} 6. exd6 {[%clk 0:02:53]}  cxd6 {[%clk 0:02:53]} 7. Nc3 {[%clk 0:02:53]}  Bg7 {[%clk 0:02:53]} 8. h3 {[%clk 0:02:52]}  O-O {[%clk 0:02:52]} 9. Be3 {[%clk 0:02:53]}  Nc6 {[%clk 0:02:52]} 10. Rc1 {[%clk 0:02:52]}  Bf5 {[%clk 0:02:53]} 11. Be2 {[%clk 0:02:47]}  d5 {[%clk 0:02:52]} 12. c5 {[%clk 0:02:46]}  Nc4 {[%clk 0:02:52]} 13. Bxc4 {[%clk 0:02:45]}  dxc4 {[%clk 0:02:51]} 14. O-O {[%clk 0:02:40]}  Bd3 {[%clk 0:02:50]} 15. Ne2 {[%clk 0:02:39]}  b5 {[%clk 0:02:23]} 16. cxb6 {[%clk 0:02:37]}  axb6 {[%clk 0:02:23]} 17. a3 {[%clk 0:02:34]}  b5 {[%clk 0:02:22]} 18. Re1 {[%clk 0:02:32]}  e5 {[%clk 0:02:15]} 19. dxe5 {[%clk 0:02:26]}  Nxe5 {[%clk 0:02:14]} 20. Nxe5 {[%clk 0:02:17]}  Bxe5 {[%clk 0:02:13]} 21. Nc3 {[%clk 0:02:17]}  Bg7 {[%clk 0:02:03]} 22. Qd2 {[%clk 0:02:10]}  Qd7 {[%clk 0:01:58]} 23. Bh6 {[%clk 0:02:08]}  Rfe8 {[%clk 0:01:51]} 24. Bxg7 {[%clk 0:02:06]}  Kxg7 {[%clk 0:01:51]} 25. Qg5 {[%clk 0:02:06]}  Rab8 {[%clk 0:01:40]} 26. Qc5 {[%clk 0:01:46]}  Qf5 {[%clk 0:01:24]} 27. Qd4+ {[%clk 0:01:43]}  Kg8 {[%clk 0:01:21]} 28. Nd5 {[%clk 0:01:43]}  Re6 {[%clk 0:00:36]} 29. Rxe6 {[%clk 0:00:47]}  fxe6 {[%clk 0:00:34]} 30. Ne7+ {[%clk 0:00:47]} 1-0


[Site "https://www.chess.com"]

[Event "Titled Tuesday Blitz February 14 Early 2023"]
[White "Janaszak, Dawid"]
[Black "Jarocka, Liwia"]
[WhiteFideId "1119206"]
[BlackFideId "21807558"]
[WhiteElo "2316"]
[BlackElo "2225"]
[Result "0-1"]
[Round "02"]
[TimeControl "180+2"]
[Date "2023.02.15"]
[WhiteClock "0:00:16"]
[BlackClock "0:00:14"]

1. e4 {[%clk 0:03:00]}  c5 {[%clk 0:02:59]} 2. Nc3 {[%clk 0:03:00]}  e6 {[%clk 0:02:59]} 3. f4 {[%clk 0:02:55]}  d5 {[%clk 0:02:59]} 4. Nf3 {[%clk 0:02:52]}  d4 {[%clk 0:02:58]} 5. Bb5+ {[%clk 0:02:51]}  Bd7 {[%clk 0:02:58]} 6. Bxd7+ {[%clk 0:02:52]}  Qxd7 {[%clk 0:02:58]} 7. Nb1 {[%clk 0:02:50]}  Nc6 {[%clk 0:02:58]} 8. d3 {[%clk 0:02:49]}  Nf6 {[%clk 0:02:56]} 9. O-O {[%clk 0:02:49]}  Be7 {[%clk 0:02:56]} 10. Qe1 {[%clk 0:02:50]}  O-O {[%clk 0:02:56]} 11. Nbd2 {[%clk 0:02:49]}  b5 {[%clk 0:02:54]} 12. a4 {[%clk 0:02:48]}  a6 {[%clk 0:02:54]} 13. Kh1 {[%clk 0:02:40]}  Ng4 {[%clk 0:02:52]} 14. Nb1 {[%clk 0:02:26]}  Nb4 {[%clk 0:02:44]} 15. Na3 {[%clk 0:02:25]}  f6 {[%clk 0:01:53]} 16. h3 {[%clk 0:02:24]}  Nh6 {[%clk 0:01:53]} 17. Bd2 {[%clk 0:02:16]}  Nf7 {[%clk 0:01:49]} 18. e5 {[%clk 0:02:12]}  f5 {[%clk 0:01:48]} 19. Rg1 {[%clk 0:02:10]}  Kh8 {[%clk 0:01:44]} 20. axb5 {[%clk 0:02:03]}  axb5 {[%clk 0:01:43]} 21. Rc1 {[%clk 0:02:03]}  Nd5 {[%clk 0:01:43]} 22. Qg3 {[%clk 0:01:54]}  Rg8 {[%clk 0:01:38]} 23. Rce1 {[%clk 0:01:47]}  g6 {[%clk 0:01:36]} 24. Qf2 {[%clk 0:01:40]}  Qc6 {[%clk 0:01:30]} 25. Kh2 {[%clk 0:01:40]}  Nb6 {[%clk 0:01:13]} 26. Bc1 {[%clk 0:01:36]}  b4 {[%clk 0:01:12]} 27. Nc4 {[%clk 0:01:35]}  Nxc4 {[%clk 0:01:12]} 28. dxc4 {[%clk 0:01:36]}  Rab8 {[%clk 0:01:01]} 29. b3 {[%clk 0:01:35]}  Ra8 {[%clk 0:01:02]} 30. g4 {[%clk 0:01:33]}  Raf8 {[%clk 0:00:51]} 31. Rg2 {[%clk 0:01:27]}  Qb7 {[%clk 0:00:45]} 32. Reg1 {[%clk 0:01:25]}  fxg4 {[%clk 0:00:45]} 33. hxg4 {[%clk 0:01:21]}  Bd8 {[%clk 0:00:37]} 34. Qg3 {[%clk 0:01:21]}  Bc7 {[%clk 0:00:36]} 35. Rh1 {[%clk 0:01:14]}  g5 {[%clk 0:00:36]} 36. Kg1 {[%clk 0:01:14]}  Rg7 {[%clk 0:00:31]} 37. fxg5 {[%clk 0:01:05]}  Qe4 {[%clk 0:00:28]} 38. Bf4 {[%clk 0:00:49]}  Kg8 {[%clk 0:00:25]} 39. Rf2 {[%clk 0:00:45]}  Nh8 {[%clk 0:00:24]} 40. Nd2 {[%clk 0:00:44]}  Qxc2 {[%clk 0:00:20]} 41. Qg2 {[%clk 0:00:33]}  Ng6 {[%clk 0:00:19]} 42. Bg3 {[%clk 0:00:30]}  Rxf2 {[%clk 0:00:17]} 43. Qxf2 {[%clk 0:00:31]}  Rf7 {[%clk 0:00:17]} 44. Qg2 {[%clk 0:00:31]}  Qd1+ {[%clk 0:00:17]} 45. Kh2 {[%clk 0:00:31]}  Bxe5 {[%clk 0:00:15]} 46. Ne4 {[%clk 0:00:30]}  Qxg4 {[%clk 0:00:14]} 47. Nf6+ {[%clk 0:00:26]}  Bxf6 {[%clk 0:00:14]} 48. gxf6 {[%clk 0:00:26]}  Rxf6 {[%clk 0:00:14]} 49. Ra1 {[%clk 0:00:24]}  Rf8 {[%clk 0:00:14]} 50. Ra7 {[%clk 0:00:21]}  Nf4 {[%clk 0:00:12]} 51. Bxf4 {[%clk 0:00:19]}  Qxg2+ {[%clk 0:00:12]} 52. Kxg2 {[%clk 0:00:19]}  Rxf4 {[%clk 0:00:13]} 53. Rc7 {[%clk 0:00:19]}  Rf5 {[%clk 0:00:13]} 54. Re7 {[%clk 0:00:18]}  Re5 {[%clk 0:00:12]} 55. Kf3 {[%clk 0:00:17]}  h5 {[%clk 0:00:13]} 56. Rd7 {[%clk 0:00:17]}  Re3+ {[%clk 0:00:13]} 57. Kf4 {[%clk 0:00:18]}  Rxb3 {[%clk 0:00:14]} 58. Kg5 {[%clk 0:00:18]}  Rg3+ {[%clk 0:00:13]} 59. Kf6 {[%clk 0:00:18]}  h4 {[%clk 0:00:12]} 60. Rd8+ {[%clk 0:00:17]}  Kh7 {[%clk 0:00:12]} 61. Rd7+ {[%clk 0:00:18]}  Kh6 {[%clk 0:00:12]} 62. Rd8 {[%clk 0:00:18]}  Kh5 {[%clk 0:00:12]} 63. Kxe6 {[%clk 0:00:17]}  Kg4 {[%clk 0:00:12]} 64. Ke5 {[%clk 0:00:17]}  h3 {[%clk 0:00:12]} 65. Kd5 {[%clk 0:00:18]}  d3 {[%clk 0:00:12]} 66. Kxc5 {[%clk 0:00:16]}  h2 {[%clk 0:00:13]} 67. Rh8 {[%clk 0:00:16]}  Rh3 {[%clk 0:00:13]} 68. Rg8+ {[%clk 0:00:16]}  Kf3 {[%clk 0:00:14]} 0-1


[Site "https://www.chess.com"]

[Event "Titled Tuesday Blitz February 14 Early 2023"]
[White "Parkhov, Yair"]
[Black "Hoffmann, Asa"]
[WhiteFideId "2813408"]
[BlackFideId "2001470"]
[WhiteElo "2505"]
[BlackElo "2185"]
[Result "1-0"]
[Round "02"]
[TimeControl "180+2"]
[Date "2023.02.15"]
[WhiteClock "0:00:55"]
[BlackClock "0:01:00"]

1. e4 {[%clk 0:02:51]}  d6 {[%clk 0:02:59]} 2. d4 {[%clk 0:02:49]}  Nf6 {[%clk 0:02:59]} 3. Nc3 {[%clk 0:02:46]}  c6 {[%clk 0:02:58]} 4. f4 {[%clk 0:02:41]}  Qa5 {[%clk 0:02:58]} 5. Bd3 {[%clk 0:02:37]}  e5 {[%clk 0:02:57]} 6. Nf3 {[%clk 0:02:36]}  exd4 {[%clk 0:02:57]} 7. Nxd4 {[%clk 0:02:36]}  Qb6 {[%clk 0:02:56]} 8. Be3 {[%clk 0:02:25]}  Ng4 {[%clk 0:02:53]} 9. Bg1 {[%clk 0:02:24]}  Qxb2 {[%clk 0:02:38]} 10. Kd2 {[%clk 0:02:09]}  Qb6 {[%clk 0:02:30]} 11. h3 {[%clk 0:02:02]}  Nf6 {[%clk 0:02:28]} 12. e5 {[%clk 0:01:59]}  dxe5 {[%clk 0:02:23]} 13. fxe5 {[%clk 0:02:00]}  Nd5 {[%clk 0:02:22]} 14. Nxd5 {[%clk 0:01:59]}  cxd5 {[%clk 0:02:22]} 15. Rb1 {[%clk 0:01:55]}  Qa5+ {[%clk 0:02:17]} 16. c3 {[%clk 0:01:51]}  Nc6 {[%clk 0:02:11]} 17. Qe2 {[%clk 0:01:36]}  Qxa2+ {[%clk 0:01:59]} 18. Bc2 {[%clk 0:01:36]}  Nxd4 {[%clk 0:01:54]} 19. Bxd4 {[%clk 0:01:35]}  Bf5 {[%clk 0:01:54]} 20. Qb5+ {[%clk 0:01:32]}  Kd8 {[%clk 0:01:50]} 21. Rb2 {[%clk 0:01:25]}  Qxb2 {[%clk 0:01:03]} 22. Qxb2 {[%clk 0:00:59]}  Bxc2 {[%clk 0:01:00]} 23. Qxb7 {[%clk 0:00:55]} 1-0


[Site "https://www.chess.com"]

[Event "Titled Tuesday Blitz February 14 Early 2023"]
[White "Lopez Del Alamo, Antonio"]
[Black "Sadykov, Ramil"]
[WhiteFideId "2227339"]
[BlackFideId "24113590"]
[WhiteElo "2280"]
[BlackElo "2345"]
[Result "0-1"]
[Round "02"]
[TimeControl "180+2"]
[Date "2023.02.15"]
[WhiteClock "0:00:23"]
[BlackClock "0:00:16"]

1. e4 {[%clk 0:03:00]}  c5 {[%clk 0:02:50]} 2. Nf3 {[%clk 0:02:59]}  e6 {[%clk 0:02:49]} 3. d3 {[%clk 0:02:59]}  Nc6 {[%clk 0:02:46]} 4. g3 {[%clk 0:02:55]}  g6 {[%clk 0:02:40]} 5. Bg2 {[%clk 0:02:50]}  Bg7 {[%clk 0:02:39]} 6. O-O {[%clk 0:02:51]}  Nge7 {[%clk 0:02:39]} 7. c3 {[%clk 0:02:51]}  d5 {[%clk 0:02:34]} 8. Nbd2 {[%clk 0:02:50]}  O-O {[%clk 0:02:31]} 9. Re1 {[%clk 0:02:49]}  h6 {[%clk 0:02:28]} 10. h4 {[%clk 0:02:49]}  e5 {[%clk 0:02:23]} 11. exd5 {[%clk 0:02:45]}  Nxd5 {[%clk 0:02:23]} 12. a4 {[%clk 0:02:43]}  Re8 {[%clk 0:02:16]} 13. Nc4 {[%clk 0:02:43]}  Kh7 {[%clk 0:02:14]} 14. Nfd2 {[%clk 0:02:34]}  Be6 {[%clk 0:02:02]} 15. Ne4 {[%clk 0:02:34]}  f5 {[%clk 0:01:53]} 16. Nxc5 {[%clk 0:02:32]}  Bc8 {[%clk 0:01:38]} 17. Qf3 {[%clk 0:02:22]}  Nf6 {[%clk 0:01:35]} 18. b4 {[%clk 0:02:01]}  e4 {[%clk 0:01:22]} 19. dxe4 {[%clk 0:02:00]}  Nxe4 {[%clk 0:01:17]} 20. Nxe4 {[%clk 0:01:58]}  fxe4 {[%clk 0:01:17]} 21. Qe3 {[%clk 0:01:55]}  Bf5 {[%clk 0:01:12]} 22. Bb2 {[%clk 0:01:48]}  Qd5 {[%clk 0:01:01]} 23. Bf1 {[%clk 0:01:43]}  Rad8 {[%clk 0:00:54]} 24. Be2 {[%clk 0:01:40]}  a5 {[%clk 0:00:51]} 25. Rad1 {[%clk 0:01:28]}  Qe6 {[%clk 0:00:51]} 26. b5 {[%clk 0:01:19]}  Ne5 {[%clk 0:00:50]} 27. Nxe5 {[%clk 0:01:18]}  Bxe5 {[%clk 0:00:45]} 28. Ba1 {[%clk 0:00:57]}  Bg7 {[%clk 0:00:39]} 29. c4 {[%clk 0:00:55]}  Bxa1 {[%clk 0:00:36]} 30. Rxa1 {[%clk 0:00:54]}  b6 {[%clk 0:00:29]} 31. Rad1 {[%clk 0:00:50]}  h5 {[%clk 0:00:29]} 32. Qf4 {[%clk 0:00:37]}  Qe7 {[%clk 0:00:22]} 33. Rxd8 {[%clk 0:00:29]}  Rxd8 {[%clk 0:00:20]} 34. Bf3 {[%clk 0:00:28]}  Qb4 {[%clk 0:00:17]} 35. Qc7+ {[%clk 0:00:23]}  Rd7 {[%clk 0:00:16]} 0-1


[Site "https://www.chess.com"]

[Event "Titled Tuesday Blitz February 14 Early 2023"]
[White "Schut, Han"]
[Black "Chylewski, Patryk"]
[WhiteFideId "1005561"]
[BlackFideId "1186191"]
[WhiteElo "2101"]
[BlackElo "2281"]
[Result "0-1"]
[Round "02"]
[TimeControl "180+2"]
[Date "2023.02.15"]
[WhiteClock "0:00:08"]
[BlackClock "0:00:04"]

1. e4 {[%clk 0:03:00]}  c5 {[%clk 0:02:59]} 2. Nf3 {[%clk 0:02:58]}  e6 {[%clk 0:02:58]} 3. c4 {[%clk 0:02:57]}  Nc6 {[%clk 0:02:56]} 4. Nc3 {[%clk 0:02:57]}  Nf6 {[%clk 0:02:54]} 5. Be2 {[%clk 0:02:56]}  d5 {[%clk 0:02:53]} 6. exd5 {[%clk 0:02:57]}  exd5 {[%clk 0:02:54]} 7. d4 {[%clk 0:02:57]}  cxd4 {[%clk 0:02:43]} 8. Nxd4 {[%clk 0:02:56]}  Be7 {[%clk 0:02:41]} 9. O-O {[%clk 0:02:45]}  O-O {[%clk 0:02:39]} 10. cxd5 {[%clk 0:02:33]}  Nxd5 {[%clk 0:02:38]} 11. Nxd5 {[%clk 0:02:29]}  Qxd5 {[%clk 0:02:39]} 12. Nxc6 {[%clk 0:02:29]}  Qxc6 {[%clk 0:02:36]} 13. Bf3 {[%clk 0:02:22]}  Qa6 {[%clk 0:01:52]} 14. Qb3 {[%clk 0:02:12]}  Rb8 {[%clk 0:01:00]} 15. Bf4 {[%clk 0:02:08]}  Bd6 {[%clk 0:00:59]} 16. Bxd6 {[%clk 0:02:08]}  Qxd6 {[%clk 0:00:59]} 17. Rad1 {[%clk 0:02:01]}  Qf6 {[%clk 0:00:54]} 18. Qa3 {[%clk 0:01:27]}  a6 {[%clk 0:00:45]} 19. b3 {[%clk 0:01:26]}  Be6 {[%clk 0:00:37]} 20. Rd2 {[%clk 0:00:55]}  Rfc8 {[%clk 0:00:26]} 21. Rfd1 {[%clk 0:00:51]}  g6 {[%clk 0:00:26]} 22. Qb2 {[%clk 0:00:42]}  Qf4 {[%clk 0:00:17]} 23. Qd4 {[%clk 0:00:36]}  Qxd4 {[%clk 0:00:16]} 24. Rxd4 {[%clk 0:00:37]}  Kg7 {[%clk 0:00:16]} 25. R4d2 {[%clk 0:00:37]}  Rc3 {[%clk 0:00:15]} 26. h3 {[%clk 0:00:36]}  h5 {[%clk 0:00:14]} 27. Kf1 {[%clk 0:00:36]}  b5 {[%clk 0:00:14]} 28. Rd3 {[%clk 0:00:30]}  b4 {[%clk 0:00:13]} 29. R3d2 {[%clk 0:00:29]}  a5 {[%clk 0:00:12]} 30. Be2 {[%clk 0:00:30]}  Ra8 {[%clk 0:00:12]} 31. Bb5 {[%clk 0:00:29]}  Rac8 {[%clk 0:00:10]} 32. Ke2 {[%clk 0:00:28]}  R8c5 {[%clk 0:00:09]} 33. Ba4 {[%clk 0:00:27]}  Re5+ {[%clk 0:00:10]} 34. Kf1 {[%clk 0:00:28]}  Bf5 {[%clk 0:00:09]} 35. Bb5 {[%clk 0:00:21]}  Rc2 {[%clk 0:00:08]} 36. Bc4 {[%clk 0:00:20]}  Rxd2 {[%clk 0:00:07]} 37. Rxd2 {[%clk 0:00:20]}  Bb1 {[%clk 0:00:07]} 38. f3 {[%clk 0:00:15]}  Bf5 {[%clk 0:00:07]} 39. Kf2 {[%clk 0:00:15]}  h4 {[%clk 0:00:06]} 40. Bd3 {[%clk 0:00:13]}  Be6 {[%clk 0:00:06]} 41. Be2 {[%clk 0:00:13]}  g5 {[%clk 0:00:06]} 42. Bd3 {[%clk 0:00:12]}  f6 {[%clk 0:00:06]} 43. Be4 {[%clk 0:00:12]}  Kf7 {[%clk 0:00:05]} 44. Rc2 {[%clk 0:00:12]}  Ke7 {[%clk 0:00:05]} 45. Rc7+ {[%clk 0:00:12]}  Kd6 {[%clk 0:00:05]} 46. Ra7 {[%clk 0:00:12]}  Rc5 {[%clk 0:00:05]} 47. Ra6+ {[%clk 0:00:12]}  Ke5 {[%clk 0:00:05]} 48. Rc6 {[%clk 0:00:12]}  Rxc6 {[%clk 0:00:04]} 49. Bxc6 {[%clk 0:00:13]}  Kd4 {[%clk 0:00:04]} 50. Ke2 {[%clk 0:00:13]}  Kc3 {[%clk 0:00:04]} 51. Ke3 {[%clk 0:00:09]}  Kb2 {[%clk 0:00:04]} 52. Kd4 {[%clk 0:00:07]}  Kxa2 {[%clk 0:00:04]} 53. Bd5 {[%clk 0:00:08]}  Bxd5 {[%clk 0:00:04]} 0-1


[Site "https://www.chess.com"]

[Event "Titled Tuesday Blitz February 14 Early 2023"]
[White "Afanasieva, Alexandra"]
[Black "Ambartsumova, Karina"]
[WhiteFideId "34126926"]
[BlackFideId "4166299"]
[WhiteElo "1857"]
[BlackElo "2393"]
[Result "0-1"]
[Round "02"]
[TimeControl "180+2"]
[Date "2023.02.15"]
[WhiteClock "0:00:04"]
[BlackClock "0:00:22"]

1. e4 {[%clk 0:03:00]}  e5 {[%clk 0:02:59]} 2. Nf3 {[%clk 0:03:00]}  Nc6 {[%clk 0:02:59]} 3. Bb5 {[%clk 0:02:59]}  Nf6 {[%clk 0:02:59]} 4. O-O {[%clk 0:02:58]}  Nxe4 {[%clk 0:02:56]} 5. d4 {[%clk 0:02:54]}  Nd6 {[%clk 0:02:55]} 6. a4 {[%clk 0:02:48]}  a6 {[%clk 0:02:36]} 7. Bxc6 {[%clk 0:02:28]}  dxc6 {[%clk 0:02:37]} 8. Re1 {[%clk 0:02:28]}  Be7 {[%clk 0:02:34]} 9. Nxe5 {[%clk 0:02:25]}  O-O {[%clk 0:02:34]} 10. c4 {[%clk 0:02:22]}  Nf5 {[%clk 0:02:30]} 11. Be3 {[%clk 0:02:17]}  Bf6 {[%clk 0:02:28]} 12. Nf3 {[%clk 0:02:13]}  c5 {[%clk 0:02:04]} 13. dxc5 {[%clk 0:01:42]}  Qxd1 {[%clk 0:02:02]} 14. Rxd1 {[%clk 0:01:42]}  Nxe3 {[%clk 0:02:02]} 15. fxe3 {[%clk 0:01:42]}  Bxb2 {[%clk 0:02:03]} 16. Ra2 {[%clk 0:01:43]}  Bf6 {[%clk 0:02:03]} 17. Nd4 {[%clk 0:01:30]}  Bg4 {[%clk 0:01:55]} 18. Re1 {[%clk 0:01:29]}  Rfe8 {[%clk 0:01:51]} 19. Kf2 {[%clk 0:01:25]}  Rad8 {[%clk 0:01:44]} 20. Rd2 {[%clk 0:01:20]}  a5 {[%clk 0:01:26]} 21. Nc3 {[%clk 0:01:19]}  b6 {[%clk 0:01:20]} 22. cxb6 {[%clk 0:00:48]}  c5 {[%clk 0:01:18]} 23. Ncb5 {[%clk 0:00:37]}  cxd4 {[%clk 0:01:15]} 24. exd4 {[%clk 0:00:37]}  Rxe1 {[%clk 0:01:01]} 25. Kxe1 {[%clk 0:00:37]}  Bd7 {[%clk 0:00:45]} 26. Nc3 {[%clk 0:00:20]}  Bc6 {[%clk 0:00:37]} 27. Ne2 {[%clk 0:00:11]}  Bxa4 {[%clk 0:00:30]} 28. d5 {[%clk 0:00:06]}  Be7 {[%clk 0:00:25]} 29. Ra2 {[%clk 0:00:05]}  Bb3 {[%clk 0:00:22]} 30. Rxa5 {[%clk 0:00:04]}  Bb4+ {[%clk 0:00:22]} 0-1


[Site "https://www.chess.com"]